bitfinex-derivatives/quotes_SOLF0:USTF0_20241025
["timestamp","ask_amount","ask_price","bid_price","bid_amount"]
[1729892880725,2.9804,168.04,168.02,1.49043774]
[1729892881227,2.9804,168.04,168.01,5.99043774]
[1729892881932,2.9804,168.04,168.01,4.5]
[1729892882128,2.9804,168.04,168.01,5.99045855]
[1729892886025,9.15776269,168.05,168.01,5.99045855]
[1729892886223,2.9805,168.04,168.01,4.5]
[1729892886931,9.15776269,168.05,168.01,4.5]
[1729892887830,2.9807,168.02,168.01,4.5]
[1729892888228,2.9807,168.02,168.01,5.99048586]
[1729892888436,2.9807,168.02,168.01,4.5]
[1729892888733,7.7407,168.02,168.01,4.5]
[1729892891130,11.4307,168.02,168.01,4.5]
[1729892891539,2.981,168.01,167.99,1.49060986]
[1729892891724,2.981,168.01,167.98,1.49058259]
[1729892891930,9.15776269,168.01,167.98,1.49058259]
[1729892892434,9.15776269,168.01,167.97,7.4815]
[1729892892634,9.15776269,168.01,167.98,1.49073288]
[1729892892838,9.15776269,168.01,167.97,7.4815]
[1729892893030,9.15776269,168.01,167.98,1.49073387]
[1729892893230,2.9811,168.0,167.97,7.4815]
[1729892893537,2.9811,168.0,167.98,1.49073409]
[1729892893739,2.9811,168.0,167.97,7.4815]
[1729892894039,2.9811,168.0,167.98,1.49073366]
[1729892894241,2.9811,168.0,167.97,4.5]
[1729892894535,2.9811,168.0,167.98,1.4907343]
[1729892894731,2.9811,168.0,167.97,4.5]
[1729892894933,2.9811,168.0,167.98,1.49073409]
[1729892895235,2.9811,168.0,167.99,1.4907353]
[1729892895436,2.9811,168.0,167.98,1.4907353]
[1729892895734,2.9811,168.0,167.97,4.5]
[1729892895927,2.9811,168.0,167.98,1.4907353]
[1729892896129,2.9811,168.0,167.97,4.5]
[1729892896327,2.9811,168.0,167.98,1.49077456]
[1729892896537,2.9811,168.0,167.97,4.5]
[1729892896743,2.9811,168.0,167.98,1.49077456]
[1729892896926,2.9811,168.0,167.97,4.5]
[1729892897235,2.9811,168.0,167.98,1.49078031]
[1729892897427,2.9811,168.0,167.97,4.5]
[1729892897629,2.9811,168.0,167.98,1.49077906]
[1729892897839,2.9811,168.0,167.97,4.5]
[1729892898137,2.9811,168.0,167.98,1.49077906]
[1729892898334,2.9811,168.0,167.97,4.5]
[1729892898535,2.9811,168.0,167.98,1.49078027]
[1729892898735,2.9811,168.0,167.97,4.5]
[1729892898936,2.9811,168.0,167.98,1.49078027]
[1729892899140,2.9811,168.0,167.97,4.5]
[1729892899441,2.9811,168.0,167.98,1.49078049]
[1729892899641,2.981,168.0,167.97,4.5]
[1729892899829,2.981,168.0,167.98,1.49078268]
[1729892900234,2.981,168.0,167.97,1.49078268]
[1729892900443,2.981,168.0,167.98,1.49078268]
[1729892900639,2.981,168.0,167.97,1.49078268]
[1729892900840,2.981,168.0,167.98,1.49078268]
[1729892901141,2.981,168.0,167.96,7.4817]
[1729892901341,4.76,167.99,167.97,1.49078488]
[1729892901542,4.76,167.99,167.98,1.49078488]
[1729892902542,7.7412,167.99,167.98,1.49078488]
[1729892902745,7.7412,167.99,167.96,4.5]
[1729892902933,7.7412,167.99,167.97,1.49093272]
[1729892903139,7.7412,167.99,167.96,4.5]
[1729892903341,7.7412,167.99,167.97,1.49095679]
[1729892903542,7.7412,167.99,167.96,4.5]
[1729892903844,7.7412,167.99,167.97,1.49094285]
[1729892904042,7.7412,167.99,167.96,4.5]
[1729892904237,7.7412,167.99,167.97,1.49092714]
[1729892904442,7.7412,167.99,167.96,4.5]
[1729892904740,7.7412,167.99,167.97,1.49092449]
[1729892904937,7.7412,167.99,167.96,4.5]
[1729892905134,7.7412,167.99,167.97,1.49094142]
[1729892905335,7.7412,167.99,167.96,4.5]
[1729892905535,7.7412,167.99,167.97,1.49094241]
[1729892905837,7.7412,167.99,167.96,4.5]
[1729892906041,7.7412,167.99,167.97,1.4909257]
[1729892906239,7.7412,167.99,167.98,1.49092571]
[1729892906441,7.7412,167.99,167.96,4.5]
[1729892906642,7.7412,167.99,167.97,1.49092495]
[1729892906848,7.7412,167.99,167.96,4.5]
[1729892907046,7.7412,167.99,167.97,1.49092471]
[1729892907245,7.7412,167.99,167.98,1.49092471]
[1729892907440,7.7412,167.99,167.98,1.49092353]
[1729892910344,7.7412,167.99,167.96,4.5]
[1729892910548,7.7412,167.99,167.97,1.49093975]
[1729892910845,2.9815,167.98,167.95,4.5]
[1729892911044,2.9815,167.98,167.96,1.4909833]
[1729892911341,2.9815,167.98,167.95,4.5]
[1729892911546,2.9815,167.98,167.97,1.49098373]
[1729892914447,12.13926269,167.98,167.97,1.49098373]
[1729892914645,12.13926269,167.98,167.95,4.5]
[1729892915048,2.9815,167.98,167.96,1.49098401]
[1729892915349,2.9815,167.98,167.97,1.49098401]
[1729892915651,12.13926269,167.98,167.97,1.49098401]
[1729892916341,2.9815,167.98,167.97,1.49098401]
[1729892917945,12.13926269,167.98,167.97,1.49098401]
[1729892918138,2.9815,167.98,167.97,1.49098401]
[1729892918344,12.13926269,167.98,167.97,1.49098401]
[1729892921358,15.82926269,167.98,167.97,1.49098401]
[1729892921957,15.82926269,167.98,167.97,1.49097076]
[1729892922363,15.82926269,167.98,167.97,2.98193886]
[1729892922560,15.82926269,167.98,167.97,1.4909681]
[1729892923961,12.84776269,167.98,167.95,4.5]
[1729892924161,12.13946269,167.96,167.95,4.5]
[1729892924362,12.13946269,167.96,167.95,5.99117665]
[1729892925474,12.13946269,167.96,167.95,4.5]
[1729892925862,12.13946269,167.96,167.95,5.99115425]
[1729892928865,12.13946269,167.96,167.95,4.5]
[1729892929571,12.13946269,167.96,167.95,5.99120693]
[1729892929771,9.15776269,167.96,167.95,5.99120693]
[1729892931371,2.9816,167.97,167.95,5.99120693]
[1729892931574,2.9816,167.97,167.95,4.5]
[1729892934375,2.9817,167.96,167.95,4.5]
[1729892934574,2.9817,167.96,167.95,5.99114324]
[1729892936379,2.9817,167.96,167.95,1.49114324]
[1729892938282,12.13946269,167.96,167.95,1.49114324]
[1729892943086,12.13946269,167.96,167.93,4.48]
[1729892943484,12.13946269,167.96,167.94,1.49119778]
[1729892943686,12.13946269,167.96,167.95,1.49119778]
[1729892943992,3.26880222,167.95,167.93,4.48]
[1729892946497,15.40856491,167.95,167.93,4.48]
[1729892946693,12.42656491,167.95,167.93,4.48]
[1729892947190,12.42656491,167.95,167.9,2.5175]
[1729892947395,12.42656491,167.95,167.93,4.48]
[1729892947795,15.40856491,167.95,167.93,4.48]
[1729892953491,3.68,167.94,167.93,4.48]
[1729892962908,12.83776269,167.94,167.93,4.48]
[1729892963710,15.81986269,167.94,167.93,1.4912265]
[1729892965903,12.83776269,167.94,167.93,1.4912265]
[1729892975220,12.83776269,167.94,167.92,4.48]
[1729892975415,9.15776269,167.94,167.92,4.48]
[1729892975620,9.15776269,167.94,167.93,1.4912265]
[1729892979020,9.15776269,167.94,167.92,4.48]
[1729892979227,9.15776269,167.94,167.93,1.49126195]
[1729892982735,9.15776269,167.94,167.92,4.48]
[1729892982931,9.15776269,167.94,167.93,1.49121267]
[1729892983732,9.15776269,167.94,167.8,4.47367951]
[1729892983733,9.15776269,167.94,167.81,4.47367951]
[1729892983937,9.15776269,167.88,167.82,4.48]
[1729892984636,9.15776269,167.88,167.86,2.9835]
[1729892984835,9.15776269,167.88,167.87,4.48]
[1729892992136,9.15776269,167.88,167.86,2.9835]
[1729892992440,9.15776269,167.88,167.86,7.4635]
[1729892996342,9.15776269,167.88,167.86,4.48]
[1729892998050,9.15776269,167.89,167.86,4.48]
[1729892998944,9.15776269,167.89,167.86,7.4634]
[1729893003352,9.15776269,167.89,167.86,4.48]
[1729893003546,9.15776269,167.89,167.87,2.9832]
[1729893004650,9.15776269,167.89,167.86,4.48]
[1729893004855,9.15776269,167.91,167.87,2.9833]
[1729893005155,1.2601,167.97,167.86,4.48]
[1729893005354,9.15776269,167.91,167.89,2.9829]
[1729893006351,9.15776269,167.91,167.86,4.48]
[1729893007255,9.15776269,167.91,167.87,2.9832]
[1729893008248,12.14046269,167.91,167.87,2.9832]
[1729893012854,9.15776269,167.91,167.86,4.48]
[1729893013051,9.15776269,167.91,167.82,9.15776269]
[1729893013266,9.15776269,167.89,167.83,4.48]
[1729893013559,9.15776269,167.89,167.84,2.9837]
[1729893013758,9.15776269,167.89,167.83,4.48]
[1729893014665,9.15776269,167.89,167.86,2.9835]
[1729893014859,9.15776269,167.89,167.87,4.48]
[1729893026877,9.15776269,167.89,167.87,4.46]
[1729893029484,2.9829,167.9,167.87,4.46]
[1729893031188,4.54,167.89,167.87,4.46]
[1729893033792,4.54,167.89,167.86,2.9835]
[1729893034092,4.54,167.89,167.87,4.46]
[1729893034685,7.5231,167.89,167.87,4.46]
[1729893035088,4.54,167.89,167.85,2.9837]
[1729893035286,4.54,167.89,167.86,4.46]
[1729893037196,4.54,167.89,167.86,7.4435]
[1729893037487,4.54,167.89,167.86,4.46]
[1729893037795,13.69776269,167.89,167.86,4.46]
[1729893042385,9.15776269,167.89,167.86,4.46]
[1729893043693,3.68,167.88,167.86,4.46]
[1729893056606,12.14116269,167.87,167.86,4.46]
[1729893056814,12.14116269,167.87,167.82,2.9842]
[1729893057013,12.14116269,167.87,167.83,4.46]
[1729893057809,12.14116269,167.87,167.84,4.46]
[1729893060122,2.9834,167.87,167.84,4.46]
[1729893060419,12.14116269,167.87,167.84,4.46]
[1729893072819,9.15776269,167.87,167.84,4.46]
[1729893073020,2.9836,167.86,167.84,4.46]
[1729893073323,9.15776269,167.86,167.83,4.46]
[1729893073524,2.9839,167.85,167.83,4.46]
[1729893075544,4.76,167.84,167.82,4.46]
[1729893078342,4.76,167.84,167.8,2.9846]
[1729893078546,4.76,167.84,167.82,4.46]
[1729893079344,4.76,167.84,167.82,7.4441]
[1729893079749,4.76,167.84,167.82,4.46]
[1729893080245,4.76,167.84,167.83,2.9841]
[1729893083952,4.76,167.84,167.82,4.46]
[1729893084553,4.76,167.84,167.82,7.4441]
[1729893084753,3.67,167.83,167.82,7.4441]
[1729893099961,3.67,167.83,167.82,4.46]
[1729893100962,3.67,167.83,167.82,7.4442]
[1729893105771,3.67,167.83,167.82,4.46]
[1729893108158,3.67,167.83,167.78,4.46]
[1729893108367,9.15776269,167.84,167.77,9.15776269]
[1729893108560,9.15776269,167.84,167.78,4.46]
[1729893108958,9.15776269,167.84,167.8,2.9845]
[1729893109358,9.15776269,167.84,167.81,4.46]
[1729893111762,3.67,167.83,167.81,4.46]
[1729893116883,3.67,167.83,167.79,2.9847]
[1729893117175,12.82776269,167.83,167.8,4.46]
[1729893119180,15.81196269,167.83,167.8,4.46]
[1729893120174,2.9842,167.82,167.8,4.46]
[1729893131083,9.15776269,167.81,167.8,4.46]
[1729893131781,9.15776269,167.81,167.77,2.985]
[1729893131981,9.15776269,167.81,167.78,4.46]
[1729893136592,1.249,167.88,167.78,4.46]
[1729893136982,9.15776269,167.86,167.79,9.15776269]
[1729893137183,9.15776269,167.86,167.82,2.9841]
[1729893137488,1.249,167.88,167.83,4.46]
[1729893137681,1.2557,167.89,167.83,4.46]
[1729893137883,9.15776269,167.88,167.83,4.46]
[1729893138288,4.76,167.87,167.84,2.9838]
[1729893139488,4.76,167.87,167.83,7.444]
[1729893142890,2.9837,167.86,167.83,4.46]
[1729893143194,13.91776269,167.87,167.83,4.46]
[1729893143588,4.76,167.87,167.83,4.46]
[1729893145391,4.76,167.87,167.83,7.4439]
[1729893155302,4.76,167.87,167.83,4.46]
[1729893159197,2.9832,167.88,167.83,4.46]
[1729893160608,2.9832,167.88,167.83,7.444]
[1729893160807,2.9832,167.88,167.84,9.15776269]
[1729893161406,2.9831,167.89,167.84,9.15776269]
[1729893166102,2.9832,167.88,167.84,9.15776269]
[1729893173011,2.9832,167.89,167.84,9.15776269]
[1729893174203,9.15776269,167.92,167.84,9.15776269]
[1729893174407,10.40666269,167.94,167.86,9.15776269]
[1729893174609,10.40666269,167.94,167.87,4.44]
[1729893174811,10.40666269,167.94,167.87,13.59776269]
[1729893175113,2.9828,167.91,167.87,13.59776269]
[1729893175517,2.9828,167.9,167.87,13.59776269]
[1729893176009,10.40666269,167.94,167.87,13.59776269]
[1729893176212,2.9825,167.92,167.87,13.59776269]
[1729893177117,2.9827,167.91,167.87,13.59776269]
[1729893177816,2.9826,167.92,167.87,13.59776269]
[1729893178113,2.9826,167.92,167.89,9.15776269]
[1729893178614,2.9826,167.92,167.88,10.41546269]
[1729893179915,2.9821,167.95,167.9,9.15776269]
[1729893180112,2.9821,167.95,167.91,4.44]
[1729893180306,9.15776269,167.97,167.91,4.44]
[1729893180816,2.982,167.95,167.91,4.44]
[1729893181220,1.278,167.99,167.91,4.44]
[1729893181420,12.13986269,167.95,167.91,4.44]
[1729893183312,9.15776269,167.95,167.91,4.44]
[1729893183518,2.9822,167.94,167.91,4.44]
[1729893183825,1.278,167.99,167.91,4.44]
[1729893184008,2.982,167.95,167.91,4.44]
[1729893185419,1.278,167.99,167.93,9.15776269]
[1729893185420,9.15776269,167.99,167.93,9.15776269]
[1729893187223,1.2325,168.01,167.93,9.15776269]
[1729893187417,9.15776269,168.0,167.93,9.15776269]
[1729893187921,2.9813,167.99,167.93,9.15776269]
[1729893188222,9.15776269,168.0,167.93,9.15776269]
[1729893189321,2.9816,167.97,167.93,9.15776269]
[1729893190924,3.66,167.96,167.93,9.15776269]
[1729893191932,3.66,167.96,167.94,9.15776269]
[1729893192123,3.66,167.96,167.95,4.44]
[1729893194223,8.42,167.96,167.95,4.44]
[1729893201524,8.42,167.96,167.95,13.59776269]
[1729893204331,8.42,167.96,167.95,4.44]
[1729893210226,11.4018,167.96,167.95,4.44]
[1729893210427,8.42,167.96,167.95,4.44]
[1729893216536,8.42,167.96,167.95,13.59776269]
[1729893218541,11.4018,167.96,167.95,4.44]
[1729893220750,8.42,167.96,167.95,4.44]
[1729893221942,11.4018,167.96,167.95,4.44]
[1729893224150,8.42,167.96,167.95,4.44]
[1729893236559,8.42,167.96,167.95,7.4219]
[1729893245364,8.42,167.96,167.95,16.57966269]
[1729893252472,8.42,167.96,167.95,18.071016]
[1729893252780,8.42,167.96,167.95,21.13772682]
[1729893253480,8.42,167.96,167.95,19.64637351]
[1729893253676,8.42,167.96,167.95,21.13770312]
[1729893256578,1.2803,168.08,167.95,18.15580312]
[1729893256778,2.9807,168.02,168.0,9.15776269]
[1729893256980,2.9807,168.02,168.01,4.42]
[1729893258381,2.9807,168.02,168.01,5.911166]
[1729893260479,10.45446269,168.07,168.01,5.911166]
[1729893260678,2.9806,168.03,168.01,4.42]
[1729893262782,1.2967,168.07,168.02,10.64886644]
[1729893262988,1.2967,168.07,168.03,1.49110375]
[1729893263178,1.2967,168.07,168.02,9.15776269]
[1729893263373,1.2967,168.07,168.03,1.49097277]
[1729893263684,1.2967,168.07,168.02,9.15776269]
[1729893263988,2.98,168.06,168.03,1.49097016]
[1729893264186,2.98,168.06,168.02,12.13836269]
[1729893264187,2.98,168.06,168.02,9.15776269]
[1729893264486,2.98,168.06,168.03,1.49092154]
[1729893264779,2.98,168.06,168.02,9.15776269]
[1729893264981,2.98,168.06,168.03,1.49091671]
[1729893265180,2.98,168.06,168.02,9.15776269]
[1729893265382,2.98,168.06,168.03,4.47141463]
[1729893265581,2.98,168.06,168.04,1.49091463]
[1729893265890,2.98,168.06,168.05,4.42]
[1729893269083,2.9806,168.03,167.99,2.9811]
[1729893269285,2.9806,168.03,168.0,15.06880728]
[1729893269486,2.9806,168.03,168.01,1.49104459]
[1729893269686,2.9806,168.03,168.0,13.57776269]
[1729893269886,2.9806,168.03,168.01,1.49102004]
[1729893270080,2.9806,168.03,168.0,13.57776269]
[1729893270489,2.9806,168.03,168.01,1.49109155]
[1729893270689,2.9806,168.03,168.0,13.57776269]
[1729893270994,2.9806,168.03,168.01,1.49108463]
[1729893271199,2.9806,168.03,168.0,13.57776269]
[1729893272489,2.9806,168.03,168.01,1.49109155]
[1729893272692,2.9806,168.03,168.0,13.57776269]
[1729893272887,2.9806,168.03,168.01,1.49109155]
[1729893273192,2.9806,168.03,168.0,13.57776269]
[1729893273997,2.9802,168.05,168.02,12.13836269]
[1729893274291,6.0467,168.07,168.04,9.15776269]
[1729893274486,6.0467,168.07,168.06,9.15776269]
[1729893274691,7.7298,168.07,168.06,9.15776269]
[1729893278204,4.75,168.07,168.06,9.15776269]
[1729893279095,4.75,168.07,168.06,10.64838784]
[1729893280295,4.75,168.07,168.06,9.15776269]
[1729893281700,4.75,168.07,168.06,10.64838564]
[1729893282001,2.9791,168.12,168.06,13.62838564]
[1729893282204,1.2504,168.13,168.09,9.15776269]
[1729893282406,9.15776269,168.16,168.11,9.15776269]
[1729893282713,10.47826269,168.18,168.11,9.15776269]
[1729893283007,2.9789,168.13,168.11,9.15776269]
[1729893283197,9.15776269,168.15,168.09,9.15776269]
[1729893283390,9.15776269,168.15,168.1,4.42]
[1729893283595,2.979,168.12,168.1,4.42]
[1729893285097,2.9791,168.11,168.1,4.42]
[1729893287702,2.9789,168.12,168.1,4.42]
[1729893288299,2.9789,168.12,168.11,9.15776269]
[1729893288993,9.15776269,168.17,168.11,9.15776269]
[1729893289197,2.9786,168.14,168.11,9.15776269]
[1729893289901,9.15776269,168.17,168.11,9.15776269]
[1729893290101,2.9787,168.14,168.11,9.15776269]
[1729893293508,1.3205,168.18,168.12,9.15776269]
[1729893293712,2.9784,168.16,168.12,9.15776269]
[1729893294010,10.47826269,168.18,168.12,9.15776269]
[1729893294606,2.9784,168.16,168.12,9.15776269]
[1729893294908,2.9784,168.16,168.12,12.13666269]
[1729893295808,10.47826269,168.18,168.12,12.13666269]
[1729893296009,2.9784,168.15,168.12,12.13666269]
[1729893300516,2.9784,168.15,168.13,9.15776269]
[1729893300718,2.9784,168.15,168.14,4.4]
[1729893305613,2.9783,168.16,168.14,4.4]
[1729893308414,2.9784,168.15,168.14,4.4]
[1729893308623,9.15776269,168.17,168.14,4.4]
[1729893309016,2.9784,168.15,168.14,4.4]
[1729893310430,2.979,168.12,168.1,9.15776269]
[1729893310629,2.979,168.12,168.11,4.4]
[1729893310924,2.9788,168.13,168.11,4.4]
[1729893311423,2.9788,168.13,168.1,9.15776269]
[1729893311628,2.9788,168.13,168.11,4.4]
[1729893318428,2.9788,168.13,168.12,4.4]
[1729893319420,2.9788,168.13,168.1,9.15776269]
[1729893319626,2.9789,168.12,168.11,4.4]
[1729893320132,9.15776269,168.15,168.11,4.4]
[1729893320431,2.9789,168.12,168.11,4.4]
[1729893321721,1.2374,168.14,168.08,12.13736269]
[1729893321926,1.2374,168.14,168.09,4.4]
[1729893322131,9.15776269,168.13,168.09,4.4]
[1729893323236,2.9793,168.11,168.09,4.4]
[1729893324026,9.15776269,168.13,168.09,4.4]
[1729893325728,9.15776269,168.13,168.08,9.15776269]
[1729893325729,1.332,168.12,168.08,13.55776269]
[1729893327337,2.9795,168.09,168.08,13.55776269]
[1729893335638,2.9796,168.08,168.06,9.15776269]
[1729893335840,2.9796,168.08,168.07,4.4]
[1729893336046,9.15776269,168.11,167.99,3.7445]
[1729893336240,2.9803,168.05,168.03,15.04822432]
[1729893336445,2.9803,168.05,168.03,13.55776269]
[1729893337137,2.9805,168.03,167.99,2.469]
[1729893337339,2.9805,168.03,168.02,4.4]
[1729893338034,2.9805,168.03,168.02,5.89074668]
[1729893338236,2.9805,168.03,168.02,4.4]
[1729893338639,9.15776269,168.07,168.02,4.4]
[1729893338847,2.9804,168.04,168.02,4.4]
[1729893339438,9.15776269,168.07,168.02,4.4]
[1729893339640,2.9805,168.03,168.02,4.4]
[1729893339835,2.9805,168.03,168.02,5.89072223]
[1729893340547,2.9805,168.03,168.02,4.4]
[1729893342650,2.9808,168.02,167.98,2.9813]
[1729893342838,2.9808,168.02,167.99,15.04856687]
[1729893343044,2.9808,168.02,168.0,1.49080418]
[1729893343347,2.9808,168.02,168.01,1.49080418]
[1729893344250,9.15776269,168.04,168.0,4.4]
[1729893344448,9.15776269,168.03,167.97,9.15776269]
[1729893344654,9.15776269,168.03,167.98,5.89084203]
[1729893344844,2.9812,168.0,167.99,1.49084203]
[1729893345246,9.15776269,168.03,167.98,4.4]
[1729893345447,9.15776269,168.03,167.99,1.49083411]
[1729893345647,2.9809,168.01,168.0,1.49083411]
[1729893346343,2.9809,168.01,167.98,4.4]
[1729893346651,2.9812,168.0,167.99,1.49086632]
[1729893347056,7.7312,168.0,167.99,1.49086632]
[1729893348256,7.7312,168.0,167.98,4.4]
[1729893348655,2.9812,167.99,167.98,4.4]
[1729893348850,2.9812,167.99,167.98,5.89086556]
[1729893349050,2.9812,167.99,167.98,4.4]
[1729893349249,2.9812,167.99,167.98,5.89086556]
[1729893352949,2.9812,167.99,167.98,4.4]
[1729893353155,2.9812,167.99,167.98,5.89083853]
[1729893353356,2.9812,167.99,167.98,4.4]
[1729893359467,4.75,168.0,167.98,13.55776269]
[1729893367169,2.9809,168.01,167.98,13.55776269]
[1729893371567,1.3171,168.05,167.98,13.55776269]
[1729893371773,2.9808,168.02,167.98,16.53916269]
[1729893373973,1.3171,168.05,167.98,16.53916269]
[1729893374177,2.9809,168.01,167.98,16.53916269]
[1729893376475,2.9807,168.03,167.99,2.9812]
[1729893376665,1.3171,168.05,167.99,2.9812]
[1729893376870,1.3171,168.05,167.98,13.55776269]
[1729893377071,2.9805,168.03,168.0,9.15776269]
[1729893377370,9.15776269,168.07,168.0,9.15776269]
[1729893377976,2.9802,168.05,168.01,2.9809]
[1729893378276,9.15776269,168.07,168.02,4.4]
[1729893378871,2.9801,168.06,168.02,4.4]
[1729893379072,71.28036728,168.09,168.03,2.9805]
[1729893379279,71.28036728,168.09,168.03,9.15776269]
[1729893379475,2.9799,168.07,168.03,9.15776269]
[1729893379773,62.12260459,168.09,168.06,2.98]
[1729893379972,65.10220459,168.09,168.07,4.4]
[1729893380167,62.12260459,168.09,168.07,4.4]
[1729893381375,2.9796,168.08,168.07,4.4]
[1729893391592,12.13736269,168.08,168.07,4.4]
[1729893392094,2.9801,168.06,168.04,1.49055119]
[1729893392291,2.9801,168.06,168.05,4.4]
[1729893400697,7.7401,168.06,168.05,4.4]
[1729893402200,7.7401,168.06,168.05,5.89057789]
[1729893402402,7.7401,168.06,168.05,4.4]
[1729893403296,7.7401,168.06,168.05,5.89057789]
[1729893404602,7.7401,168.06,168.05,4.4]
[1729893405602,7.7401,168.06,168.05,5.89058204]
[1729893405802,7.7401,168.06,168.05,4.4]
[1729893409519,4.76,168.06,168.05,7.3802]
[1729893409707,4.76,168.06,168.05,4.4]
[1729893411415,7.74,168.06,168.05,4.4]
[1729893412309,4.76,168.06,168.05,7.3802]
[1729893412515,4.76,168.06,168.05,18.02851522]
[1729893414019,2.7602,168.06,168.05,18.02851522]
[1729893414213,2.9796,168.09,168.05,18.02851522]
[1729893414415,2.9796,168.09,168.06,1.49055253]
[1729893414717,2.9796,168.09,168.07,1.49055253]
[1729893414917,2.9792,168.11,168.06,12.13766269]
[1729893415117,9.15776269,168.12,168.07,1.49037232]
[1729893415319,9.15776269,168.12,168.06,9.15776269]
[1729893415616,2.9792,168.11,168.08,9.15776269]
[1729893415814,9.15776269,168.14,168.09,4.4]
[1729893416117,1.229,168.16,168.1,1.4901779]
[1729893416420,9.15776269,168.15,168.09,7.3793]
[1729893416624,9.15776269,168.15,168.1,1.49013989]
[1729893416920,9.15776269,168.15,168.09,7.3793]
[1729893417117,2.9785,168.15,168.1,1.49014074]
[1729893417420,9.15776269,168.15,168.09,7.3793]
[1729893417621,9.15776269,168.15,168.1,1.49010821]
[1729893417822,9.15776269,168.15,168.09,7.3793]
[1729893418118,2.9788,168.13,168.1,1.49010821]
[1729893418418,2.9788,168.13,168.09,7.3793]
[1729893418615,2.9788,168.13,168.1,1.4901013]
[1729893418918,2.9788,168.13,168.09,7.3793]
[1729893419118,2.9788,168.13,168.1,1.4901013]
[1729893419313,2.9788,168.13,168.09,7.3793]
[1729893421022,2.9788,168.13,168.09,16.53706269]
[1729893422924,2.9788,168.13,168.09,13.55776269]
[1729893428723,9.15776269,168.15,168.09,13.55776269]
[1729893429428,2.9789,168.13,168.09,13.55776269]
[1729893432832,2.9789,168.13,168.09,16.53716269]
[1729893435128,2.9785,168.15,168.09,16.53716269]
[1729893436024,2.9782,168.17,168.1,9.15776269]
[1729893436224,9.15776269,168.18,168.12,9.15776269]
[1729893436427,9.15776269,168.18,168.13,4.38]
[1729893436836,12.13576269,168.18,168.13,4.38]
[1729893439035,12.13576269,168.18,168.13,7.3587]
[1729893439935,2.978,168.18,168.13,7.3587]
[1729893444446,2.978,168.18,168.14,2.9784]
[1729893444636,1.2836,168.21,168.14,9.15776269]
[1729893444637,10.44136269,168.21,168.14,9.15776269]
[1729893445031,10.44136269,168.21,168.16,2.9781]
[1729893445333,1.2836,168.21,168.17,4.38]
[1729893445741,11.76066269,168.22,168.17,4.38]
[1729893446246,11.76066269,168.22,168.18,2.9778]
[1729893446640,2.9773,168.21,168.18,2.9778]
[1729893451049,2.9773,168.22,168.18,12.13556269]
[1729893451741,2.9773,168.22,168.18,2.9778]
[1729893451939,2.9773,168.22,168.19,2.9777]
[1729893452134,1.2739,168.26,168.2,9.15776269]
[1729893452334,1.2739,168.26,168.21,4.38]
[1729893452335,9.15776269,168.25,168.21,4.38]
[1729893453546,2.9768,168.24,168.21,4.38]
[1729893454045,9.15776269,168.25,168.21,4.38]
[1729893454448,9.15776269,168.25,168.21,13.53776269]
[1729893455335,2.9769,168.24,168.21,16.51506269]
[1729893457450,2.9767,168.25,168.21,16.51506269]
[1729893458147,2.5243,168.27,168.22,9.15776269]
[1729893458347,2.9765,168.26,168.22,9.15776269]
[1729893459246,2.9765,168.26,168.23,2.9769]
[1729893463842,2.9765,168.26,168.24,9.15776269]
[1729893464048,2.9765,168.26,168.25,4.38]
[1729893464250,0.37,168.25,168.24,9.15776269]
[1729893464450,0.37,168.25,168.24,13.53776269]
[1729893468449,3.3466,168.25,168.24,4.38]
[1729893475052,3.3466,168.25,168.22,9.15776269]
[1729893475264,0.37,168.25,168.23,13.53776269]